bitfinex-derivatives/quotes_ETHF0:USTF0_20250212
["timestamp","ask_amount","ask_price","bid_price","bid_amount"]
[1739399853997,4.11952087,2789.9,2789.6,3.2131673]
[1739399855594,4.11952087,2789.7,2789.6,3.2131673]
[1739399855988,18.62180673,2789.7,2789.6,3.2131673]
[1739399856184,17.90498673,2789.7,2789.1,3.2078]
[1739399856384,4.11952087,2788.7,2788.5,3.2078]
[1739399856588,4.11952087,2788.7,2788.6,4.7580574]
[1739399856790,4.11952087,2788.7,2788.2,3.2078]
[1739399857090,4.11952087,2788.7,2788.2,7.77822372]
[1739399857288,4.11952087,2788.3,2788.2,7.77822372]
[1739399857594,4.11952087,2788.3,2788.2,0.00537702]
[1739399857789,17.90498673,2788.3,2788.2,0.00537702]
[1739399857995,18.62216673,2788.3,2788.2,0.00537702]
[1739399858591,17.90498673,2788.3,2787.4,3.2078]
[1739399858792,4.11952087,2787.6,2787.4,3.2078]
[1739399858994,4.11952087,2787.9,2787.4,3.2078]
[1739399859292,4.11952087,2788.3,2787.8,3.2078]
[1739399859490,0.00537702,2788.7,2787.8,3.2078]
[1739399859691,13.79084288,2788.7,2787.9,4.74289103]
[1739399859895,0.00537702,2788.7,2787.9,4.74289103]
[1739399860093,4.12489789,2788.7,2788.0,4.3673272]
[1739399860400,4.12489789,2788.7,2788.1,3.2078]
[1739399860890,13.79084288,2788.7,2788.1,3.2078]
[1739399861199,4.11952087,2788.2,2787.8,3.21317702]
[1739399861499,4.11952087,2787.9,2787.8,0.00537702]
[1739399861701,4.11952087,2787.9,2787.8,3.21317702]
[1739399862698,17.90498673,2787.9,2787.8,3.21317702]
[1739399863300,17.90498673,2787.9,2787.8,0.00537702]
[1739399864596,21.11278673,2787.9,2787.2,3.2078]
[1739399864802,0.71737,2787.6,2787.2,3.2078]
[1739399865010,4.11952087,2787.3,2787.0,4.3673272]
[1739399865209,16.99326586,2787.9,2786.7,3.2078]
[1739399865210,4.11952087,2787.2,2786.7,3.2078]
[1739399865797,4.12489789,2787.2,2786.7,3.21317702]
[1739399866703,4.11952087,2786.8,2786.7,0.00537702]
[1739399867113,17.90498673,2786.8,2786.7,0.00537702]
[1739399867303,18.19198673,2786.8,2786.7,0.00537702]
[1739399868607,4.11952087,2786.2,2785.9,0.26286442]
[1739399868908,4.11952087,2785.9,2785.4,4.3673272]
[1739399869113,3.2078,2786.2,2785.4,4.3673272]
[1739399869114,4.11952087,2785.7,2785.4,4.3673272]
[1739399869814,3.2078,2786.5,2785.4,4.3673272]
[1739399870011,4.11952087,2786.3,2785.8,4.3673272]
[1739399870212,4.11952087,2786.1,2785.8,8.1983272]
[1739399870412,1.4356,2786.2,2785.8,8.1983272]
[1739399870913,12.70554139,2786.7,2785.8,8.1983272]
[1739399871116,2.01696746,2787.3,2786.3,4.3673272]
[1739399871311,1.16412459,2786.9,2786.4,3.2078]
[1739399871506,1.16412459,2786.9,2786.4,7.95509064]
[1739399871811,1.16412459,2786.7,2786.4,3.2078]
[1739399872212,1.88177459,2786.5,2785.9,6.5872]
[1739399872417,1.16412459,2786.3,2785.9,3.2078]
[1739399872613,0.71768,2786.4,2785.9,3.2078]
[1739399872809,1.16412459,2786.0,2785.6,3.2078]
[1739399873011,1.16412459,2785.7,2785.6,3.2078]
[1739399873212,1.16412459,2785.7,2785.3,4.37090865]
[1739399874409,1.16412459,2785.6,2785.3,4.37090865]
[1739399874810,3.3854,2786.6,2785.3,4.37090865]
[1739399875016,1.16412459,2786.1,2785.8,3.2078]
[1739399875212,1.16412459,2786.0,2785.8,3.2078]
[1739399876317,1.16412459,2785.9,2785.8,3.2078]
[1739399876518,1.16412459,2786.0,2785.8,3.2078]
[1739399877517,1.4352,2786.9,2785.9,9.11810254]
[1739399877717,0.2869,2787.5,2786.8,4.3673272]
[1739399878015,3.2078,2788.3,2787.0,3.2078]
[1739399878211,13.78008884,2788.3,2787.1,3.2078]
[1739399878512,0.92202304,2787.2,2787.1,3.2078]
[1739399878713,0.92202304,2787.2,2786.4,3.2078]
[1739399878911,0.92202304,2786.9,2786.4,3.2078]
[1739399879120,0.92202304,2786.9,2786.5,0.00537702]
[1739399879318,3.2078,2789.9,2787.2,3.2078]
[1739399879522,3.2078,2789.9,2788.8,3.2078]
[1739399880021,7.1111,2790.2,2789.1,3.2078]
[1739399880425,0.00537702,2789.9,2789.4,0.00537702]
[1739399880914,0.71687,2789.5,2789.4,0.00537702]
[1739399881115,3.92467,2789.5,2789.4,0.00537702]
[1739399881318,0.71687,2789.5,2789.4,0.00537702]
[1739399882121,0.71693,2789.3,2788.6,3.2078]
[1739399882315,0.71689,2789.4,2788.6,3.2078]
[1739399882516,0.00537702,2789.9,2788.7,4.63230391]
[1739399882716,0.303,2790.1,2789.5,3.2078]
[1739399882917,3.92411,2791.7,2789.9,4.3673272]
[1739399883124,6.5284,2792.5,2790.9,4.3673272]
[1739399883318,3.2078,2793.0,2791.4,4.3673272]
[1739399883723,3.2078,2793.0,2791.5,4.76497423]
[1739399883920,0.00537702,2792.5,2791.9,0.00537702]
[1739399884225,0.00537702,2792.5,2792.1,3.2078]
[1739399885411,0.00537702,2792.5,2792.3,3.2078]
[1739399885612,0.00537702,2792.5,2792.2,3.2078]
[1739399885821,0.00537702,2792.5,2791.9,0.00537702]
[1739399886013,3.2078,2792.3,2791.0,0.25804455]
[1739399886217,3.2078,2792.0,2791.0,0.25804455]
[1739399886423,0.71646,2791.1,2791.0,0.25804455]
[1739399886724,0.71646,2791.1,2789.1,3.2078]
[1739399886725,3.2078,2791.1,2789.1,3.2078]
[1739399886918,4.3673272,2791.3,2788.4,4.3673272]
[1739399886919,0.71687,2789.5,2788.7,3.2078]
[1739399887114,0.71689,2789.5,2788.7,3.2078]
[1739399887320,0.00537702,2789.4,2788.8,0.00537702]
[1739399887518,0.71699,2789.1,2788.8,0.00537702]
[1739399887823,0.00537702,2789.4,2788.8,0.00537702]
[1739399888017,3.2078,2789.3,2788.8,0.00537702]
[1739399888216,3.2078,2789.0,2788.2,3.2078]
[1739399888521,3.2078,2789.0,2787.5,3.2078]
[1739399888718,3.2078,2788.7,2787.5,3.2078]
[1739399888918,3.2078,2788.1,2787.5,3.2078]
[1739399889118,0.71736,2787.7,2786.6,9.9799]
[1739399889321,3.2078,2788.1,2787.5,0.00537702]
[1739399889722,3.92516,2787.7,2787.5,0.00537702]
[1739399889924,0.71736,2787.6,2787.5,0.00537702]
[1739399890323,0.71745,2787.3,2786.6,3.2078]
[1739399890521,3.72,2787.5,2786.0,0.26074499]
[1739399890713,0.71754,2786.9,2785.7,3.2078]
[1739399891020,0.71762,2786.6,2785.7,3.2078]
[1739399891229,0.71762,2786.6,2785.7,3.47697652]
[1739399891525,0.00537702,2786.4,2785.9,0.00358145]
[1739399891823,0.71776,2786.1,2785.4,3.2078]
[1739399892022,0.71774,2786.2,2785.4,3.2078]
[1739399892325,0.71772,2786.2,2785.4,3.2078]
[1739399892523,3.92549,2786.3,2785.4,3.2078]
[1739399892720,3.2078,2786.3,2785.4,3.2078]
[1739399893119,0.71774,2786.2,2785.4,3.2078]
[1739399893926,3.2078,2786.3,2785.4,3.2078]
[1739399893927,0.71771,2786.3,2785.4,3.2078]
[1739399894225,3.667,2786.3,2785.4,3.2078]
[1739399894422,3.662,2786.3,2785.4,3.2078]
[1739399895021,3.2078,2785.7,2784.5,3.2078]
[1739399895226,3.2078,2785.7,2784.8,3.2078]
[1739399895421,0.71801,2785.1,2784.2,3.2078]
[1739399895620,0.71803,2785.0,2784.2,3.2078]
[1739399895919,0.71804,2785.0,2784.2,3.2078]
[1739399896223,0.72344677,2784.9,2784.2,3.2078]
[1739399896430,0.00538677,2784.9,2784.2,3.2078]
[1739399896620,0.00538677,2784.9,2783.9,3.2078]
[1739399897023,0.71811,2784.7,2783.9,3.2078]
[1739399897521,0.00538677,2784.9,2783.9,3.2078]
[1739399897721,0.71808,2784.8,2783.9,3.2078]
[1739399897928,0.71816,2784.5,2783.9,3.2078]
[1739399898127,0.00538677,2784.9,2783.9,3.2078]
[1739399898423,0.71817,2784.5,2783.9,3.2078]
[1739399898622,3.21318677,2784.9,2783.9,3.2078]
[1739399898824,0.71819,2784.4,2783.9,3.2078]
[1739399899023,0.00538677,2784.9,2783.9,3.2078]
[1739399899233,0.7182,2784.4,2783.9,3.2078]
[1739399899427,0.71819,2784.4,2783.9,3.2078]
[1739399899823,0.71827,2784.1,2783.9,3.2078]
[1739399900025,3.2078,2784.5,2783.9,3.2078]
[1739399900430,1.79547,2784.4,2783.2,3.2078]
[1739399900627,3.2078,2784.2,2783.0,3.2078]
[1739399900928,4.28515,2784.6,2783.3,3.2078]
[1739399901129,0.00538677,2784.9,2783.7,3.2078]
[1739399901521,0.00538677,2784.9,2783.7,9.66848368]
[1739399901722,0.00538677,2784.9,2784.3,3.2078]
[1739399902129,0.71813,2784.6,2784.0,3.2078]
[1739399902525,0.00538677,2784.9,2784.0,3.2078]
[1739399902726,0.71817,2784.5,2784.0,3.2078]
[1739399903023,3.2078,2784.8,2784.0,3.2078]
[1739399903228,0.71812,2784.7,2784.0,3.2078]
[1739399903430,0.71808,2784.8,2784.0,3.2078]
[1739399903629,0.00538677,2784.9,2784.0,3.2078]
[1739399903827,0.71775,2786.1,2784.6,3.2078]
[1739399904126,0.71781,2785.9,2784.6,3.2078]
[1739399904327,6.6583,2786.2,2784.6,3.2078]
[1739399905034,0.71788,2785.6,2785.1,0.00538677]
[1739399905235,0.0561,2785.5,2785.1,0.00538677]
[1739399906535,0.71797,2785.2,2785.1,0.00538677]
[1739399908035,3.2078,2785.4,2785.1,0.00538677]
[1739399908234,0.0561,2785.5,2785.1,0.00538677]
[1739399909535,0.71797,2785.2,2785.1,0.00538677]
[1739399909738,0.0561,2785.5,2785.1,0.00538677]
[1739399910241,0.77401,2785.5,2785.1,0.00538677]
[1739399910438,0.0561,2785.5,2785.1,0.00538677]
[1739399910734,0.0561,2785.5,2785.2,3.2078]
[1739399912328,0.71797,2785.2,2785.1,0.00538677]
[1739399912834,9.92577,2785.2,2785.1,0.00538677]
[1739399913547,1.79512,2785.0,2784.0,6.595]
[1739399913735,1.79514,2784.9,2784.0,6.595]
[1739399914037,0.71819,2784.4,2784.0,6.595]
[1739399914233,0.71808,2784.8,2782.8,6.8017]
[1739399914234,0.00211323,2785.1,2783.8,3.2078]
[1739399914441,0.00211323,2785.1,2784.2,3.2078]
[1739399914642,0.72012323,2785.1,2784.2,3.2078]
[1739399914838,0.00538677,2784.9,2784.2,3.2078]
[1739399915637,0.00538677,2784.9,2783.6,7.80636409]
[1739399915638,0.00538677,2784.9,2783.7,3.2078]
[1739399915838,1.79533,2784.6,2783.7,3.2078]
[1739399916034,3.2078,2784.3,2783.6,3.647]
[1739399916341,3.2078,2784.3,2783.2,3.2078]
[1739399916637,3.2078,2783.7,2782.8,3.2078]
[1739399916835,0.7185,2783.2,2782.8,3.2078]
[1739399917031,3.383,2783.6,2782.8,3.2078]
[1739399917232,0.71852,2783.1,2782.8,3.2078]
[1739399917431,0.71849,2783.2,2782.8,3.2078]
[1739399917627,3.2078,2784.7,2783.1,4.15936409]
[1739399918135,0.71813,2784.6,2784.5,0.0070316]
[1739399918336,1.79717323,2785.1,2784.5,0.0070316]
[1739399918337,0.00211323,2785.1,2784.5,0.0070316]
[1739399918643,0.71778,2786.0,2784.6,4.15936409]
[1739399918938,3.2078,2786.1,2784.6,4.15936409]
[1739399918939,0.00538677,2785.1,2784.6,4.15936409]
[1739399919139,0.71786,2785.7,2784.6,4.15936409]
[1739399919338,3.2078,2786.1,2784.6,4.15936409]
[1739399919538,5.00224,2786.0,2784.5,0.01241837]
[1739399919741,0.71804,2785.0,2784.5,0.01241837]
[1739399919942,5.00249,2785.6,2784.5,0.01241837]
[1739399919943,3.2078,2785.6,2784.5,0.01241837]
[1739399920245,0.00538677,2785.3,2784.5,0.01241837]
[1739399920741,0.71809,2784.8,2784.5,0.01241837]
[1739399920943,3.2078,2785.0,2784.5,0.01241837]
[1739399921141,0.71813,2784.6,2784.5,0.01241837]
[1739399921346,0.71825,2784.2,2783.7,3.2078]
[1739399921542,3.2078,2784.8,2783.7,3.2078]
[1739399921748,3.412,2784.3,2783.2,3.2078]
[1739399922141,3.92615,2783.8,2783.2,3.2078]
[1739399922335,0.71835,2783.8,2783.2,3.2078]
[1739399922542,3.21318677,2783.8,2783.2,3.21318677]
[1739399922743,0.00538677,2783.8,2783.2,3.21318677]
[1739399923544,0.00538677,2783.8,2783.2,0.00538677]
[1739399923737,0.7184,2783.6,2783.2,0.00538677]
[1739399923945,3.2078,2783.7,2783.2,0.00538677]
[1739399924153,0.71845,2783.4,2783.2,0.00538677]
[1739399924441,0.71846,2783.3,2783.2,0.00538677]
[1739399924647,3.2078,2783.7,2783.2,0.00538677]
[1739399925045,3.92617,2783.7,2783.2,0.00538677]
[1739399925440,3.2078,2783.7,2783.2,0.00538677]
[1739399926048,0.7184,2783.6,2783.2,0.00538677]
[1739399926243,3.2078,2783.7,2783.2,0.00538677]
[1739399926449,0.00538677,2783.8,2783.5,3.2078]
[1739399926849,0.00538677,2783.8,2783.2,3.21318677]
[1739399927050,0.00538677,2783.8,2783.5,3.2078]
[1739399927546,0.00538677,2783.8,2783.2,3.21318677]
[1739399927852,0.71841,2783.5,2783.2,0.00538677]
[1739399928052,0.00538677,2783.8,2783.2,0.00538677]
[1739399928249,0.71842,2783.5,2783.2,0.00538677]
[1739399928453,0.00538677,2783.8,2783.2,0.00538677]
[1739399928652,3.2078,2783.7,2783.2,0.00538677]
[1739399928846,0.71841,2783.6,2783.2,0.00538677]
[1739399929046,3.2078,2783.7,2783.2,0.00538677]
[1739399929247,0.71842,2783.5,2783.2,0.00538677]
[1739399929447,3.2078,2783.7,2783.2,0.00538677]
[1739399930452,0.71847,2783.3,2783.2,0.00538677]
[1739399931158,6.0,2783.3,2782.5,3.2078]
[1739399931355,8.30499,2783.3,2782.1,3.2078]
[1739399931654,0.71863,2782.7,2782.1,3.2078]
[1739399931852,3.2078,2783.1,2782.1,3.2078]
[1739399932041,0.7186,2782.8,2782.1,3.2078]
[1739399932242,6.4968,2783.1,2781.8,3.2078]
[1739399932440,0.71874,2782.3,2781.8,3.2078]
[1739399932755,0.72412677,2782.3,2781.8,3.2078]
[1739399932955,0.00538677,2782.3,2781.8,3.2078]
[1739399933253,0.71883,2781.9,2781.5,3.2078]
[1739399933452,0.71882,2782.0,2781.5,3.2078]
[1739399934043,3.2078,2782.2,2781.5,3.2078]
[1739399934253,3.27438677,2782.3,2781.5,3.2078]
[1739399934444,0.00538677,2782.3,2781.9,3.2078]
[1739399936752,0.71828,2784.1,2782.2,3.2078]
[1739399936951,0.71828,2784.1,2782.8,3.2078]
[1739399937149,0.71827,2784.1,2782.8,6.4498]
[1739399937351,0.71827,2784.1,2782.9,4.6593966]
[1739399937553,3.2078,2784.4,2782.9,4.6593966]
[1739399937759,3.2078,2784.3,2783.4,0.00538677]
[1739399937957,0.71841,2783.5,2783.4,0.00538677]
[1739399939454,6.0,2783.5,2782.1,3.5647]
[1739399939654,3.2078,2783.7,2782.1,3.5647]
[1739399939655,3.2078,2782.6,2782.1,3.5647]
[1739399940161,3.2078,2782.5,2782.1,3.5647]
[1739399940464,3.2078,2782.2,2782.1,3.5647]
[1739399940754,0.00538677,2782.4,2782.1,3.5647]
[1739399941259,3.21318677,2782.4,2782.1,3.5647]
[1739399941861,0.71873,2782.3,2782.1,3.5647]
[1739399942054,3.21318677,2782.4,2782.0,3.4298]
[1739399942254,0.71877,2782.2,2782.0,3.4298]
[1739399942853,3.21318677,2782.4,2782.0,3.4298]
[1739399943154,0.71877,2782.1,2782.0,3.4298]
[1739399943461,3.21318677,2782.4,2781.6,0.71889]
[1739399943670,0.71884,2781.9,2781.7,0.71888]
[1739399943960,0.71881,2782.0,2781.7,0.71888]
[1739399944154,3.21318677,2782.4,2781.3,3.5853]
[1739399944355,0.71899,2781.3,2781.1,4.16152]
[1739399944555,0.71901,2781.2,2781.1,3.4425]
[1739399944763,1.79701,2782.0,2781.1,3.4425]
[1739399944764,5.005,2781.7,2781.1,3.4425]
[1739399944958,0.71901,2781.2,2781.1,3.4425]
[1739399945659,3.2078,2781.6,2780.7,0.02968788]
[1739399945860,0.71905,2781.1,2780.8,0.7191]
[1739399946064,0.71905,2781.1,2780.7,0.02968788]
[1739399946358,3.2078,2781.3,2780.7,0.02968788]
[1739399946859,0.71904,2781.1,2780.2,4.15936409]
[1739399947159,1.79727,2781.6,2778.2,3.2078]
[1739399947160,7.36716409,2780.3,2778.2,3.2078]
[1739399947362,3.2078,2779.4,2778.2,3.2078]
[1739399947557,3.2078,2779.4,2778.3,4.77060228]
[1739399947763,3.2078,2779.3,2778.3,4.77060228]
[1739399947953,3.2078,2780.5,2778.9,4.15936409]
[1739399948153,3.2078,2781.1,2779.7,3.2078]
[1739399948356,3.2078,2781.0,2779.8,3.4384]
[1739399948556,3.2078,2781.0,2779.8,11.33402338]
[1739399948757,3.2078,2781.0,2780.5,0.71917]
[1739399948957,3.2078,2781.0,2779.8,11.33402338]
[1739399949161,3.21319714,2781.0,2780.5,0.00539714]
[1739399949858,3.2078,2780.6,2780.5,0.00539714]
[1739399950757,3.2078,2780.6,2780.5,0.72458714]
[1739399950951,3.2078,2780.6,2780.5,0.00539714]
[1739399952057,3.21319714,2781.0,2780.5,0.00539714]
[1739399952760,3.2078,2780.6,2780.5,0.00539714]
[1739399952961,3.92696,2780.6,2780.5,0.00539714]
[1739399953855,9.2078,2780.6,2779.1,3.6416]
[1739399954057,3.2078,2779.2,2778.7,3.2078]
[1739399954565,3.2078,2779.4,2778.7,3.2078]
[1739399955260,3.2078,2778.8,2777.9,3.2078]
[1739399955660,3.2078,2778.9,2777.9,3.2078]
[1739399955962,3.2078,2778.9,2777.3,8.77392]
[1739399955963,3.2078,2778.9,2777.6,3.2078]
[1739399956157,3.2078,2778.9,2777.3,6.9739]
[1739399956361,0.71984,2778.0,2777.3,3.84208625]
[1739399956669,3.2078,2778.2,2777.3,3.6282]
[1739399957065,0.71993,2777.7,2777.0,3.2078]
[1739399957265,3.2078,2778.1,2777.0,3.2078]
[1739399957456,3.066,2778.5,2777.0,3.41438818]
[1739399957457,0.00539714,2777.6,2777.0,3.41438818]
[1739399958571,0.00539714,2777.6,2777.0,3.2078]
[1739399958763,3.2078,2777.5,2776.6,6.836]
[1739399958957,3.2078,2777.5,2776.6,3.2078]
[1739399959162,3.2078,2777.4,2776.0,3.2078]
[1739399959364,3.2078,2777.4,2776.0,3.42403432]
[1739399959671,0.00539714,2777.6,2776.5,4.76927772]
[1739399959858,0.00539714,2777.6,2776.3,3.2078]
[1739399960365,3.2078,2776.7,2776.0,0.21623432]
[1739399960565,3.92813,2776.1,2775.4,0.7205]
[1739399960866,3.2078,2775.9,2774.8,3.4768]
[1739399961264,3.2078,2775.3,2774.9,4.67518767]
[1739399961464,3.2078,2775.3,2774.6,0.21016417]
[1739399961465,3.2078,2775.0,2774.6,0.21016417]
[1739399961663,3.2078,2775.3,2774.3,3.2078]
[1739399961872,3.92834,2775.3,2774.3,3.2078]
[1739399962071,3.2078,2774.9,2774.3,3.2078]
[1739399962372,3.2078,2774.9,2774.3,0.20726199]
[1739399962564,3.2078,2774.9,2774.3,0.72077]
[1739399962766,3.2078,2774.5,2774.0,3.2078]
[1739399962959,3.2078,2774.9,2774.0,3.2078]
[1739399963160,0.00539714,2774.5,2774.0,5.00996]
[1739399963365,3.92825,2775.7,2774.7,0.72067]
[1739399963669,3.2078,2775.6,2774.0,3.2078]
[1739399963867,3.2078,2774.1,2773.7,7.0253]
[1739399964073,3.2078,2774.6,2773.0,7.36716409]
[1739399964272,0.72098,2773.6,2773.0,3.41951058]
[1739399964576,3.2078,2773.3,2773.0,0.00540755]
[1739399965065,0.00540755,2773.6,2773.0,6.00540755]
[1739399965264,0.00540755,2773.6,2773.5,0.721]
[1739399965477,3.2078,2774.7,2774.2,0.7208]
[1739399965773,3.2078,2775.3,2774.6,0.7207]
[1739399965976,3.2078,2775.3,2774.5,0.72073]
[1739399966186,3.2078,2775.3,2774.6,0.7207]
[1739399966375,3.2078,2775.3,2774.5,0.72074]
[1739399966577,0.00540755,2775.2,2774.7,0.00540755]
[1739399966770,0.00540755,2775.2,2774.8,3.057]
[1739399966976,4.15936409,2776.9,2774.8,7.83104003]
[1739399967169,0.72015,2776.8,2775.0,7.36716409]
[1739399967365,3.2078,2777.1,2775.0,7.36716409]
[1739399967580,3.2078,2777.1,2775.3,3.2078]
[1739399967971,3.2078,2777.1,2776.3,0.72027]
[1739399968271,3.2078,2777.1,2776.1,3.054]
[1739399968272,0.00540755,2776.5,2776.1,3.054]
[1739399968472,0.00540755,2776.5,2776.4,0.00540755]
[1739399969272,0.72562755,2776.5,2776.4,0.00540755]
[1739399969480,0.72562755,2776.5,2774.1,3.2078]
[1739399969481,31.13120755,2776.5,2774.1,3.2078]
[1739399969680,3.2078,2775.4,2773.8,3.2078]
[1739399969973,3.2078,2775.4,2773.2,3.7665]
[1739399969974,7.22236409,2775.3,2773.2,3.97965439]
[1739399970181,6.2698,2775.2,2773.2,3.97965439]
[1739399970374,3.2078,2774.8,2773.3,4.6834732]
[1739399970880,3.21320755,2774.5,2773.9,0.00540755]
[1739399971080,0.7208,2774.3,2773.9,0.00540755]
[1739399971280,3.21320755,2774.5,2773.9,0.00540755]
[1739399971875,0.00540755,2774.5,2774.0,4.63974151]
[1739399972067,3.2078,2775.8,2774.2,1.80205]
[1739399972369,0.72034,2776.1,2774.5,1.80186]
[1739399972567,3.2078,2775.8,2774.6,1.8018]
[1739399972773,3.2078,2775.8,2775.7,0.72043]
[1739399972974,3.047,2776.6,2774.7,1.80172]
[1739399972975,0.72029,2776.3,2775.5,0.72047]
[1739399973180,0.00540755,2776.0,2775.3,3.036]
[1739399973477,0.00540755,2776.0,2775.6,4.76142086]
[1739399973781,0.00540755,2776.0,2775.6,0.00540755]
[1739399974078,3.2078,2775.8,2775.7,4.75601331]
[1739399974282,3.2078,2775.8,2775.6,0.00540755]
[1739399974578,0.72043,2775.7,2775.6,0.00540755]
[1739399975076,3.2078,2775.8,2775.6,0.00540755]
[1739399976476,0.72043,2775.7,2775.6,0.00540755]
[1739399976680,3.2078,2775.8,2775.6,0.00540755]
[1739399976881,0.72043,2775.7,2775.6,0.00540755]
[1739399977674,3.2078,2775.8,2775.7,0.72043]
[1739399977882,3.2078,2775.8,2775.6,0.00540755]
[1739399978077,3.2078,2775.8,2775.7,0.72043]
[1739399978386,3.2078,2775.8,2775.6,0.00540755]
[1739399979082,3.92822,2775.8,2775.6,0.00540755]
[1739399979279,3.93822,2775.8,2775.6,0.00540755]
[1739399979487,0.72043,2775.7,2775.6,0.00540755]
[1739399979681,3.93822,2775.8,2775.6,0.00540755]
[1739399979886,3.2178,2775.8,2775.6,0.00540755]
[1739399980087,3.93822,2775.8,2775.6,0.00540755]
[1739399980389,0.72043,2775.7,2775.6,0.00540755]
[1739399980775,3.2178,2775.8,2774.3,10.2005]
[1739399980980,3.2178,2775.8,2773.8,3.2078]
[1739399980981,3.2078,2774.5,2773.8,3.2078]
[1739399981784,3.2078,2775.6,2775.5,0.72048]
[1739399981980,0.01,2775.8,2774.7,3.018]
[1739399982285,0.01,2775.8,2775.7,0.72043]
[1739399982485,0.01,2775.8,2774.8,7.7630331]
[1739399982684,0.01,2775.8,2775.7,0.72043]
[1739399982886,0.01,2775.8,2775.6,0.72044]
[1739399983082,0.01,2775.8,2775.5,0.00540755]
[1739399983790,0.01,2775.8,2775.5,0.72586755]
[1739399983983,0.01,2775.8,2775.6,0.72046]
[1739399984390,0.01,2775.8,2775.7,0.72043]
[1739399985186,1e-05,2775.8,2775.7,0.72043]
[1739399985387,1e-05,2775.8,2775.7,5.48662562]
[1739399985888,3.2078,2776.4,2775.8,1.80101]
[1739399986087,3.2078,2776.9,2776.5,0.72021]
[1739399986288,3.2078,2776.9,2775.9,4.63814891]
[1739399986488,3.2078,2776.9,2776.5,0.72021]
[1739399986688,3.2078,2776.6,2776.4,0.72024]
[1739399986883,3.2078,2776.9,2776.8,0.72015]
[1739399987090,3.2078,2778.1,2776.7,3.018]
[1739399987291,3.2078,2777.1,2776.6,3.018]
[1739399987494,3.2078,2777.1,2777.0,0.72009]
[1739399987790,3.01714795,2777.1,2777.0,6.72009]
[1739399987993,1.79914,2778.8,2777.0,10.7759525]
[1739399987994,3.2078,2777.9,2777.0,10.7759525]
[1739399988185,3.2078,2777.9,2777.8,0.71989]
[1739399988584,3.2078,2778.7,2778.4,0.71973]
[1739399988799,3.2078,2778.7,2776.6,10.8498]
[1739399989097,3.2078,2777.1,2776.8,4.66706675]
[1739399989404,3.2078,2777.1,2777.0,0.72009]
[1739399990005,3.018,2778.2,2776.8,4.66706675]
[1739399990006,3.2078,2777.8,2776.8,4.66706675]
[1739399990204,3.2078,2777.8,2777.7,0.71991]
[1739399991002,7.55e-06,2778.0,2777.7,6.0]
[1739399991208,2.43407755,2778.7,2778.6,0.71968]
[1739399993004,0.00540755,2778.9,2778.8,0.71963]
[1739399993411,9.21320755,2778.9,2778.4,0.00540755]
[1739399993610,9.21320755,2778.9,2777.5,3.2078]
[1739399993611,2.99971746,2778.5,2777.8,0.71988]
[1739399993805,2.99971746,2778.5,2777.0,4.15936409]
[1739399993806,3.2078,2778.4,2777.0,3.2078]
[1739399994109,0.71977,2778.3,2778.0,0.71981]
[1739399994307,3.2078,2778.4,2778.3,0.71976]
[1739399994502,0.00540755,2778.9,2778.3,0.71976]
[1739399994703,0.00540755,2778.9,2778.8,0.71963]
[1739399995412,7.55e-06,2778.9,2778.8,0.71963]
[1739399995915,3.2078,2779.5,2779.4,0.71947]
[1739399996411,3.2078,2780.0,2779.9,0.71934]
[1739399996613,3.2078,2780.0,2778.7,6.80598]
[1739399996806,3.2078,2779.7,2777.9,6.843]
[1739399997009,3.8065,2780.1,2779.1,0.00539704]
[1739399997010,3.2078,2779.5,2779.1,0.00539704]
[1739399997208,3.92732,2779.2,2779.1,0.00539704]
[1739399997510,9.2078,2779.2,2777.4,1.79999]
[1739399997709,0.71975,2778.4,2777.4,1.79999]
[1739399997909,6.2238,2778.5,2778.0,0.71981]
[1739399998108,3.2078,2778.5,2777.2,3.2078]
[1739399998305,3.2078,2778.8,2778.4,0.71973]
[1739399998508,3.8392,2779.1,2778.4,0.71973]
[1739399998509,7.047,2779.1,2779.0,0.71958]
[1739399999008,7.047,2779.1,2778.4,0.71973]
[1739399999207,3.8392,2779.1,2777.9,3.59922]
[1739399999409,0.71961,2778.9,2778.6,0.71966]
[1739399999608,3.2078,2778.7,2777.8,3.2078]
[1739399999809,3.2078,2778.4,2777.6,0.00539704]
[1739400000007,3.2078,2777.8,2777.7,0.71991]
[1739400000215,3.2078,2777.8,2777.6,0.00539704]
[1739400000411,0.71998,2777.5,2777.1,0.72006]
[1739400000612,3.8392,2777.7,2776.3,5.00844]
[1739400000613,7.6955,2777.7,2776.3,5.00844]
[1739400000810,3.2078,2778.1,2776.0,4.15936409]
[1739400001012,0.01,2778.9,2775.9,7.02765115]
[1739400001013,4.15936409,2778.8,2778.6,0.71967]
[1739400001220,4.15936409,2778.8,2776.5,4.15936409]
[1739400001221,3.2178,2778.9,2777.3,3.2078]
[1739400001413,3.2178,2778.9,2778.8,0.71963]
[1739400001919,9.2178,2778.9,2777.8,0.00539704]
[1739400002120,0.71965,2778.8,2778.4,0.71973]
[1739400002319,0.71967,2778.7,2778.3,0.71974]
[1739400002614,3.2078,2778.8,2778.3,0.71974]
[1739400002815,3.2078,2778.8,2777.8,0.00539704]
[1739400002816,0.71969,2778.6,2778.2,0.71976]
[1739400003317,0.71969,2778.6,2777.8,0.00539704]
[1739400003618,0.71969,2778.6,2778.2,0.71977]
[1739400003812,0.71966,2778.7,2777.8,0.00539704]
[1739400004013,3.2078,2778.0,2777.8,0.00539704]
[1739400004317,0.71978,2778.3,2777.9,0.71985]
[1739400004520,3.2078,2778.0,2777.8,0.00539704]
[1739400004724,3.2078,2780.1,2777.9,4.15936409]
[1739400005015,3.2078,2779.5,2779.4,0.71947]
[1739400005211,7.3031,2780.0,2778.6,3.2078]
[1739400005414,7.3031,2780.0,2778.7,3.2078]
[1739400005614,0.71936,2779.9,2778.3,6.2228]
[1739400005814,7.3031,2780.0,2778.3,6.2228]
[1739400006120,0.71941,2779.7,2779.3,0.71949]
[1739400006312,0.00539704,2779.4,2779.3,0.71949]